bitfinex-derivatives/quotes_BTCF0:USTF0_20250729
["timestamp","ask_amount","ask_price","bid_price","bid_amount"]
[1753820874859,0.3664917,117660.0,117650.0,1.06313363]
[1753820875060,0.4514917,117660.0,117650.0,1.06313363]
[1753820875255,0.351091,117660.0,117650.0,1.06313363]
[1753820875462,0.5211017,117660.0,117650.0,1.06313363]
[1753820875657,0.351091,117660.0,117650.0,1.06313363]
[1753820875960,0.6544817,117660.0,117650.0,0.7689231]
[1753820876166,0.6544817,117660.0,117650.0,1.0556431]
[1753820876467,0.6544817,117660.0,117650.0,0.6414107]
[1753820876662,0.6544817,117660.0,117650.0,0.9280907]
[1753820877066,0.6544817,117660.0,117650.0,0.75808]
[1753820877269,0.3033907,117660.0,117650.0,0.4714]
[1753820877567,0.3033907,117660.0,117650.0,0.75804]
[1753820878166,0.3033907,117660.0,117650.0,0.4714]
[1753820878359,0.3033907,117660.0,117650.0,0.75804]
[1753820879172,0.5071107,117660.0,117650.0,0.75804]
[1753820879373,0.6464817,117660.0,117650.0,0.75804]
[1753820879869,0.6464817,117660.0,117650.0,0.4714]
[1753820880071,0.6464817,117660.0,117650.0,0.75796]
[1753820880269,0.6464817,117660.0,117650.0,0.20262777]
[1753820880465,0.1464817,117660.0,117650.0,0.20262777]
[1753820880671,0.4498724,117660.0,117650.0,0.37265287]
[1753820880870,0.4498724,117660.0,117650.0,0.71885287]
[1753820882475,0.5839824,117660.0,117650.0,0.71885287]
[1753820887577,0.5839824,117660.0,117650.0,0.8025851]
[1753820888272,0.5839824,117660.0,117650.0,0.63256]
[1753820888472,0.5839824,117660.0,117650.0,0.5162252]
[1753820888780,0.5839824,117660.0,117650.0,0.8025852]
[1753820889682,0.5839824,117660.0,117650.0,0.5162252]
[1753820889881,0.5839824,117660.0,117650.0,0.8025052]
[1753820890685,0.5277617,117660.0,117650.0,0.5162252]
[1753820890879,0.3093817,117660.0,117650.0,0.8025052]
[1753820891872,0.4639917,117660.0,117650.0,0.8025052]
[1753820892074,0.5091117,117660.0,117650.0,0.8025052]
[1753820892888,0.6464817,117660.0,117650.0,0.8025052]
[1753820895182,0.6093333,117650.0,117640.0,0.35161]
[1753820895380,0.1700541,117630.0,117620.0,0.6492151]
[1753820895581,0.5243441,117630.0,117620.0,1.01150693]
[1753820895781,0.4743641,117630.0,117620.0,0.9353351]
[1753820895985,0.4063141,117630.0,117620.0,0.9353351]
[1753820896286,0.1700541,117630.0,117620.0,0.9353351]
[1753820896488,0.1700541,117630.0,117620.0,0.9363351]
[1753820897491,0.4715052,117640.0,117630.0,0.1700541]
[1753820897697,0.4692452,117640.0,117630.0,0.5216641]
[1753820899498,0.5593852,117640.0,117630.0,0.5216641]
[1753820900401,0.7487362,117640.0,117630.0,0.5216641]
[1753820903399,0.7487362,117640.0,117630.0,0.8076241]
[1753820906499,0.7487362,117640.0,117630.0,0.5216641]
[1753820906709,0.255027,117660.0,117650.0,0.5216351]
[1753820906897,0.212521,117660.0,117650.0,0.8074751]
[1753820908611,0.6092977,117670.0,117660.0,0.5216207]
[1753820908797,0.5168162,117670.0,117660.0,0.5216207]
[1753820909202,0.4743165,117670.0,117660.0,0.5216207]
[1753820909397,0.46032648,117680.0,117670.0,0.5216063]
[1753820909610,0.23745968,117680.0,117670.0,0.8073663]
[1753820909804,0.60921149,117690.0,117680.0,0.4747218]
[1753820910004,0.6017731,117690.0,117680.0,0.5215918]
[1753820910308,0.6517531,117690.0,117680.0,0.5215918]
[1753820911810,0.65910303,117690.0,117680.0,0.63733]
[1753820912006,0.6547531,117690.0,117680.0,0.8073117]
[1753820912401,0.6547531,117690.0,117680.0,0.80619568]
[1753820913814,0.5242717,117680.0,117670.0,0.6065894]
[1753820914106,0.5242717,117680.0,117670.0,0.8921894]
[1753820915111,0.5292717,117680.0,117670.0,0.8921894]
[1753820917618,0.5292717,117680.0,117670.0,0.8496928]
[1753820918615,0.5292717,117680.0,117670.0,0.63721]
[1753820918816,0.5292717,117680.0,117670.0,0.63709]
[1753820919019,0.5292717,117680.0,117670.0,0.8070863]
[1753820919412,0.5292717,117680.0,117670.0,0.8070463]
[1753820919721,0.54891629,117680.0,117670.0,0.8070463]
[1753820922323,0.54891629,117680.0,117670.0,0.8069263]
[1753820922722,0.5292717,117680.0,117670.0,0.8069263]
[1753820923223,0.54890768,117680.0,117670.0,0.8069263]
[1753820924226,0.5292717,117680.0,117670.0,0.8069263]
[1753820924927,0.5292717,117680.0,117670.0,0.63693]
[1753820925324,0.5292717,117680.0,117670.0,0.35161]
[1753820925523,0.5292717,117680.0,117670.0,0.63689]
[1753820926319,0.5292717,117680.0,117670.0,0.47342]
[1753820926524,0.5292717,117680.0,117670.0,0.35287]
[1753820926727,0.5292717,117680.0,117670.0,0.63807]
[1753820928326,0.5292717,117680.0,117670.0,0.63803]
[1753820928525,0.1749817,117680.0,117670.0,0.7404363]
[1753820928725,0.1749817,117680.0,117670.0,0.8080263]
[1753820929229,0.005,117680.0,117670.0,0.8080263]
[1753820930525,0.004,117680.0,117670.0,0.8080263]
[1753820931131,0.001,117680.0,117670.0,0.88419813]
[1753820931435,0.002,117680.0,117670.0,0.8080263]
[1753820931932,0.002,117680.0,117670.0,0.88419813]
[1753820932629,0.1699676,117690.0,117680.0,0.6596269]
[1753820934238,0.1719676,117690.0,117680.0,0.6596269]
[1753820935230,0.002,117690.0,117680.0,0.6596269]
[1753820937837,0.2549218,117710.0,117700.0,0.532133]
[1753820938038,0.2549218,117710.0,117700.0,0.816973]
[1753820938427,0.3480218,117710.0,117700.0,0.816973]
[1753820938935,0.3520218,117710.0,117700.0,0.816973]
[1753820939136,0.4739018,117710.0,117700.0,0.816973]
[1753820939536,0.4699018,117710.0,117700.0,0.816973]
[1753820939742,0.4729018,117710.0,117700.0,0.816973]
[1753820940038,0.5661518,117710.0,117700.0,0.816973]
[1753820940639,0.5661518,117710.0,117700.0,0.8244078]
[1753820940939,0.5681518,117710.0,117700.0,0.816973]
[1753820941638,0.5671518,117710.0,117700.0,0.816973]
[1753820942137,0.2589218,117710.0,117700.0,0.816973]
[1753820942341,0.32824159,117710.0,117700.0,0.816973]
[1753820943933,0.47102159,117710.0,117700.0,0.816973]
[1753820944135,0.60462159,117710.0,117700.0,0.816973]
[1753820944336,0.63647159,117710.0,117700.0,0.816973]
[1753820944942,0.63647159,117710.0,117700.0,0.532133]
[1753820945132,0.68570159,117710.0,117700.0,0.816773]
[1753820945438,0.68570159,117710.0,117700.0,0.48209]
[1753820945642,0.5274132,117700.0,117690.0,0.5321477]
[1753820945830,0.5274132,117700.0,117690.0,0.8167477]
[1753820946032,0.4781832,117700.0,117690.0,0.8167477]
[1753820946341,0.20077939,117710.0,117690.0,0.8167477]
[1753820946536,0.004,117710.0,117700.0,0.5321332]
[1753820946738,0.4791688,117710.0,117700.0,0.5321332]
[1753820946936,0.5283988,117710.0,117700.0,0.5321332]
[1753820947140,0.5283988,117710.0,117700.0,0.8166932]
[1753820947438,0.5273988,117710.0,117700.0,0.8166932]
[1753820948042,0.4781688,117710.0,117700.0,0.8166932]
[1753820948344,0.4069688,117710.0,117700.0,0.8166932]
[1753820948939,0.4791688,117710.0,117700.0,0.8166932]
[1753820949140,0.30923,117710.0,117700.0,0.8166932]
[1753820949336,0.31023,117710.0,117700.0,0.8166932]
[1753820949841,0.31123,117710.0,117700.0,0.8166932]
[1753820950146,0.4811684,117710.0,117700.0,0.8166932]
[1753820950648,0.31123,117710.0,117700.0,0.8166932]
[1753820951746,0.4811686,117710.0,117700.0,0.8166932]
[1753820951946,0.31123,117710.0,117700.0,0.8166932]
[1753820952848,0.31950377,117710.0,117700.0,0.8166932]
[1753820953345,0.53867247,117710.0,117700.0,0.8166932]
[1753820955849,0.36873377,117710.0,117700.0,0.8166932]
[1753820956746,0.31950377,117710.0,117700.0,0.8166932]
[1753820957447,0.48944177,117710.0,117700.0,0.8166932]
[1753820957645,0.31950377,117710.0,117700.0,0.8166932]
[1753820958049,0.48944197,117710.0,117700.0,0.8166932]
[1753820958350,0.53918197,117710.0,117700.0,0.8166932]
[1753820958751,0.36924377,117710.0,117700.0,0.8166932]
[1753820959551,0.53918187,117710.0,117700.0,0.8166932]
[1753820960549,0.53918187,117710.0,117700.0,0.5321332]
[1753820960752,0.53918187,117710.0,117700.0,0.8162532]
[1753820960951,0.53918187,117710.0,117700.0,0.5321332]
[1753820961147,0.53918187,117710.0,117700.0,0.8162532]
[1753820961553,0.53918187,117710.0,117700.0,0.5321332]
[1753820961747,0.53918187,117710.0,117700.0,0.8162532]
[1753820962448,0.1699524,117700.0,117690.0,1.0374839]
[1753820962647,0.5163224,117700.0,117690.0,0.9100268]
[1753820962856,0.5163224,117700.0,117690.0,1.02414]
[1753820963151,0.52459617,117700.0,117690.0,1.02414]
[1753820963459,0.5163368,117690.0,117680.0,0.24615093]
[1753820963748,0.5163368,117690.0,117680.0,0.53019093]
[1753820963945,0.52461057,117690.0,117680.0,0.4540191]
[1753820964250,0.52461057,117690.0,117680.0,0.07617183]
[1753820964442,0.52461057,117690.0,117680.0,0.4540213]
[1753820964641,0.52461057,117690.0,117680.0,0.5044213]
[1753820965149,0.52461057,117690.0,117680.0,0.8142313]
[1753820966259,0.52561057,117690.0,117680.0,0.8142313]
[1753820966641,0.25955057,117690.0,117680.0,0.8142313]
[1753820966855,0.27016057,117690.0,117680.0,0.8142313]
[1753820967850,0.38380057,117690.0,117680.0,0.8142313]
[1753820969555,0.38480057,117690.0,117680.0,0.8142313]
[1753820969952,0.47687057,117690.0,117680.0,0.8142313]
[1753820970161,0.47687057,117690.0,117680.0,0.8132313]
[1753820971057,0.47787057,117690.0,117680.0,0.8132313]
[1753820971550,0.01127377,117690.0,117680.0,0.8132313]
[1753820973051,0.00927377,117690.0,117680.0,0.8132313]
[1753820973248,0.00927377,117690.0,117680.0,1.0831313]
[1753820973757,0.00827377,117690.0,117680.0,1.0831313]
[1753820975556,0.17824057,117690.0,117680.0,1.0831313]
[1753820975757,0.00827377,117690.0,117680.0,1.0831313]
[1753820979558,0.17824067,117690.0,117680.0,1.0831313]
[1753820980658,0.00827377,117690.0,117680.0,1.0831313]
[1753820983761,0.00827377,117690.0,117680.0,0.8132313]
[1753820985556,0.17824057,117690.0,117680.0,0.8132313]
[1753820985965,0.00827377,117690.0,117680.0,0.8132313]
[1753820991265,0.17824057,117690.0,117680.0,0.8132313]
[1753820991462,0.17824057,117690.0,117680.0,0.5291913]
[1753820991664,0.1699813,117680.0,117670.0,1.06104783]
[1753820991865,0.5290513,117680.0,117670.0,1.39103783]
[1753820992067,0.53732507,117680.0,117670.0,1.10775783]
[1753820992264,0.53732507,117680.0,117670.0,1.362786]
[1753820992967,0.48959507,117680.0,117670.0,1.362786]
[1753820996068,0.53732507,117680.0,117670.0,1.362786]
[1753820996769,0.53732507,117680.0,117670.0,0.35437]
[1753820996967,0.3127103,117660.0,117650.0,0.35437]
[1753820997270,0.5290803,117660.0,117650.0,0.8075148]
[1753820998065,0.53735407,117660.0,117650.0,0.8075148]
[1753820998262,0.53735407,117660.0,117650.0,0.002]
[1753820998461,0.53735407,117660.0,117650.0,0.33304]
[1753820998864,0.53735407,117660.0,117650.0,0.50602]
[1753820999059,0.53735407,117660.0,117650.0,0.63949]
[1753820999465,0.53735407,117660.0,117650.0,0.8095148]
[1753820999766,0.53735407,117660.0,117650.0,0.8114748]
[1753820999964,0.53735407,117660.0,117650.0,0.8114746]
[1753821000170,0.53735407,117660.0,117650.0,0.28704]
[1753821000666,0.53735407,117660.0,117650.0,0.004]
[1753821000869,0.70734607,117660.0,117650.0,0.002]
[1753821001070,0.95834607,117660.0,117650.0,0.002]
[1753821001258,0.1700247,117650.0,117640.0,0.4530789]
[1753821001464,0.5290947,117650.0,117640.0,0.33096]
[1753821001867,0.5290947,117650.0,117640.0,0.5009991]
[1753821002062,0.60553986,117650.0,117640.0,0.50394]
[1753821002363,0.5291091,117640.0,117630.0,0.8499237]
[1753821002568,0.5291091,117640.0,117630.0,0.1700422]
[1753821002760,0.5291091,117640.0,117630.0,0.5009622]
[1753821003166,0.53738287,117640.0,117630.0,0.04792]
[1753821003369,0.5291235,117630.0,117620.0,0.651974]
[1753821003569,0.5291235,117630.0,117620.0,0.934974]
[1753821004166,0.53739727,117630.0,117620.0,0.934974]
[1753821005571,0.53739727,117630.0,117620.0,0.936974]
[1753821007174,0.53739727,117630.0,117620.0,0.8519406]
[1753821007873,0.53739727,117630.0,117620.0,0.8539406]
[1753821008976,0.48966727,117630.0,117620.0,0.8539406]
[1753821009672,0.17832727,117630.0,117620.0,0.8539406]
[1753821009872,0.00827377,117630.0,117620.0,0.8539406]
[1753821010180,0.17832747,117630.0,117620.0,0.8539406]
[1753821010980,0.00827377,117630.0,117620.0,0.8539406]
[1753821011671,0.17832737,117630.0,117620.0,0.8539406]
[1753821012276,0.00827377,117630.0,117620.0,0.8539406]
[1753821012476,0.17832727,117630.0,117620.0,0.8539406]
[1753821012877,0.39465727,117630.0,117620.0,0.8539406]
[1753821013075,0.48966727,117630.0,117620.0,0.5284239]
[1753821013273,0.53739727,117630.0,117620.0,0.811238]
[1753821013878,0.53739727,117630.0,117620.0,0.64117]
[1753821014381,0.53739727,117630.0,117620.0,0.811238]
[1753821015290,0.53739727,117630.0,117620.0,0.35837]
[1753821015494,0.53739727,117630.0,117620.0,0.64117]
[1753821015690,0.53739727,117630.0,117620.0,0.55617045]
[1753821015889,0.53739727,117630.0,117620.0,0.72623865]
[1753821018085,0.53739727,117630.0,117620.0,0.72617865]
[1753821018286,0.54527633,117630.0,117620.0,0.72617865]
[1753821019181,0.54527633,117630.0,117620.0,0.6949482]
[1753821019684,0.54527633,117630.0,117620.0,0.8154782]
[1753821020793,0.54527633,117630.0,117620.0,0.5390382]
[1753821020988,0.54527633,117630.0,117620.0,0.28664]
[1753821021188,0.54527633,117630.0,117620.0,0.004]
[1753821022182,0.54527633,117630.0,117620.0,0.003]
[1753821023091,0.54527633,117630.0,117620.0,0.002]
[1753821024089,0.54527633,117630.0,117620.0,0.05181]
[1753821024399,0.54527633,117630.0,117620.0,0.14491]
[1753821024598,0.54527633,117630.0,117620.0,0.17739]
[1753821024905,0.56534944,117630.0,117620.0,0.08429]
[1753821025398,0.56534944,117630.0,117620.0,0.17739]
[1753821025591,0.56534944,117630.0,117620.0,0.08429]
[1753821025794,0.56534944,117630.0,117620.0,0.05181]
[1753821026602,0.56534944,117630.0,117620.0,0.002]
[1753821031999,0.2324269,117620.0,117610.0,0.08229]
[1753821032198,0.54466378,117620.0,117610.0,0.08229]
[1753821032398,0.5163314,117610.0,117600.0,0.5253349]
[1753821032598,0.53640451,117610.0,117600.0,0.5253349]
[1753821033200,0.54267828,117610.0,117600.0,0.52483029]
[1753821033894,0.54282269,117610.0,117600.0,0.52483029]
[1753821034098,0.54282269,117610.0,117600.0,0.52583029]
[1753821035308,0.54282269,117610.0,117600.0,0.35573539]
[1753821035802,0.54282269,117610.0,117600.0,0.14261]
[1753821036103,0.54282269,117610.0,117600.0,0.001]
[1753821036502,0.5163459,117600.0,117590.0,0.48407678]
[1753821037099,0.53653495,117600.0,117590.0,0.48407678]
[1753821037403,0.54480872,117600.0,117590.0,0.3117182]
[1753821037600,2.04480872,117600.0,117590.0,0.3409382]
[1753821038005,2.04480872,117600.0,117590.0,0.3419382]
[1753821038605,2.04480872,117600.0,117590.0,0.4526782]
[1753821039306,2.02461967,117600.0,117590.0,0.4526782]
[1753821040505,1.97778967,117600.0,117590.0,0.4526782]
[1753821040900,2.02461967,117600.0,117590.0,0.4526782]
[1753821041094,0.00827377,117600.0,117590.0,0.4526782]
[1753821041294,0.00827377,117600.0,117590.0,0.7348782]
[1753821052916,0.4735117,117630.0,117620.0,0.378597]
[1753821053212,0.04851,117630.0,117620.0,0.727417]
[1753821053417,0.49381,117640.0,117630.0,0.4454825]
[1753821053912,0.04851,117640.0,117630.0,0.4454825]
[1753821054116,0.49913459,117650.0,117640.0,0.4454681]
[1753821054316,0.49913459,117650.0,117640.0,0.7273881]
[1753821054317,0.61472484,117650.0,117640.0,0.7273881]
[1753821054716,0.54655345,117650.0,117640.0,0.7273881]
[1753821055320,0.5266632,117650.0,117640.0,0.7273881]
[1753821056613,0.5356632,117650.0,117640.0,0.7273881]
[1753821058618,0.009,117650.0,117640.0,0.7273881]
[1753821059124,0.431297,117670.0,117660.0,0.2861892]
[1753821059323,0.431297,117670.0,117660.0,0.7271992]
[1753821059523,0.526627,117670.0,117660.0,0.7271992]
[1753821060125,0.573517,117670.0,117660.0,0.7271992]
[1753821060424,0.578517,117670.0,117660.0,0.7271992]
[1753821060823,0.578517,117670.0,117660.0,0.55719]
[1753821062220,0.581517,117670.0,117660.0,0.55719]
[1753821063029,0.13109,117670.0,117660.0,0.7271992]
[1753821063230,0.22679,117670.0,117660.0,0.7271992]
[1753821063527,0.4921148,117670.0,117660.0,0.55719]
[1753821063727,0.5390048,117670.0,117660.0,0.7271992]
[1753821067436,0.5340048,117670.0,117660.0,0.7271992]
[1753821067632,0.5350048,117670.0,117660.0,0.7271992]
[1753821068133,0.4871148,117670.0,117660.0,0.7271992]
[1753821068334,0.5340048,117670.0,117660.0,0.7271992]
[1753821069235,0.4512592,117660.0,117650.0,0.2494936]
[1753821069531,0.5310192,117660.0,117650.0,0.36095]
[1753821069737,0.5310192,117660.0,117650.0,0.6810736]
[1753821069930,0.5310192,117660.0,117650.0,0.7269336]
[1753821070126,0.5310192,117660.0,117650.0,0.51105]
[1753821070331,0.5310337,117650.0,117640.0,0.13722]
[1753821070631,0.5310337,117650.0,117640.0,0.51101]
[1753821070833,0.5310337,117650.0,117640.0,0.6810482]
[1753821071027,0.5310337,117650.0,117640.0,0.6986882]
[1753821071231,0.255077,117640.0,117630.0,0.09235]
[1753821071537,0.6585851,117640.0,117630.0,0.51101]
[1753821072136,0.6160725,117640.0,117630.0,0.7269226]
[1753821073335,0.4841582,117640.0,117630.0,0.7299226]
[1753821073531,0.2125412,117650.0,117640.0,0.2560082]
[1753821073725,0.4239712,117650.0,117640.0,0.4464682]
[1753821073933,0.3814652,117650.0,117640.0,0.4464682]
[1753821075245,0.4737052,117650.0,117640.0,0.4464682]
[1753821075445,0.5188752,117650.0,117640.0,0.4464682]
[1753821075631,0.5188752,117650.0,117640.0,0.27643]
[1753821075942,0.5188782,117640.0,117630.0,0.42816]
[1753821076137,0.5188782,117640.0,117630.0,0.5981726]
[1753821076338,0.5188782,117640.0,117630.0,0.28536]
[1753821076539,0.5188782,117640.0,117630.0,0.33222]
[1753821076838,0.5188782,117640.0,117630.0,0.7337826]
[1753821077139,0.5188782,117640.0,117630.0,0.7357826]
[1753821077643,0.5188782,117640.0,117630.0,0.7327826]
[1753821077941,0.5208782,117640.0,117630.0,0.7327826]
[1753821078330,0.5198782,117640.0,117630.0,0.7327826]
[1753821078934,0.5228782,117640.0,117630.0,0.7327826]
[1753821079447,0.5228782,117640.0,117630.0,0.7045626]
[1753821079946,0.5238782,117640.0,117630.0,0.7045626]
[1753821080645,0.5238782,117640.0,117630.0,0.7327826]
[1753821081241,0.4787082,117640.0,117630.0,0.7327826]
[1753821083049,0.5238782,117640.0,117630.0,0.23551]
[1753821083348,0.5238782,117640.0,117630.0,0.51679]
[1753821083740,0.1700543,117630.0,117620.0,0.67377]
[1753821083941,0.5188943,117630.0,117620.0,0.52034]
[1753821084146,0.5188943,117630.0,117620.0,0.78880685]
[1753821084544,0.5188943,117630.0,117620.0,1.05162555]
[1753821085153,0.5198943,117630.0,117620.0,1.05162555]
[1753821085651,0.5218943,117630.0,117620.0,1.05162555]
[1753821086454,0.5198943,117630.0,117620.0,0.6868187]
[1753821086646,0.5238943,117630.0,117620.0,0.7044587]
[1753821089052,0.5238943,117630.0,117620.0,0.6868187]
[1753821089257,0.5189087,117620.0,117610.0,0.23551]
[1753821089448,0.5189087,117620.0,117610.0,0.6867531]
[1753821089753,0.5189087,117620.0,117610.0,0.7326131]
[1753821090056,0.5189087,117620.0,117610.0,0.4514531]
[1753821090257,0.5189087,117620.0,117610.0,0.7325731]
[1753821090555,0.5199087,117620.0,117610.0,0.7325731]
[1753821090953,0.5189087,117620.0,117610.0,0.7335731]
[1753821091853,0.5189087,117620.0,117610.0,0.7345731]
[1753821092847,0.5189087,117620.0,117610.0,0.23751]
[1753821093051,0.5189087,117620.0,117610.0,0.51763]
[1753821093457,0.5189087,117620.0,117610.0,0.6877132]
[1753821093859,0.5189087,117620.0,117610.0,0.7053532]
[1753821094155,0.5199087,117620.0,117610.0,0.7053532]
[1753821094552,0.5199087,117620.0,117610.0,0.56349]
[1753821095051,0.5199087,117620.0,117610.0,0.56345]
[1753821095254,0.5199087,117620.0,117610.0,0.08148]
[1753821095453,0.5199087,117620.0,117610.0,0.001]
[1753821095757,0.5199087,117620.0,117610.0,0.05086]
[1753821095953,0.58772677,117620.0,117610.0,0.05086]
[1753821096260,0.58772677,117620.0,117610.0,0.17323]
[1753821096560,0.5209087,117620.0,117610.0,0.17323]
[1753821097062,0.5199087,117620.0,117610.0,0.17323]
[1753821097359,0.3525321,117590.0,117580.0,0.28137]
[1753821097563,0.2195421,117590.0,117580.0,0.64754207]
[1753821097864,0.1701121,117590.0,117580.0,0.64754207]
[1753821098850,0.1701121,117590.0,117580.0,0.13405557]
[1753821099160,0.5189521,117590.0,117580.0,0.4238]
[1753821099555,0.5189521,117590.0,117580.0,0.4258]
[1753821099762,0.5189521,117590.0,117580.0,0.51855]
[1753821099953,0.5189521,117590.0,117580.0,0.6906765]
[1753821100149,0.5189521,117590.0,117580.0,0.51855]
[1753821100359,0.5199521,117590.0,117580.0,0.6886765]
[1753821100760,0.5189521,117590.0,117580.0,0.6866765]
[1753821100963,0.5209521,117590.0,117580.0,0.6866765]
[1753821101162,0.4757821,117590.0,117580.0,0.23551]
[1753821101357,0.5209521,117590.0,117580.0,0.51651]
[1753821101559,0.5209521,117590.0,117580.0,0.6866365]
[1753821101759,0.5209521,117590.0,117580.0,0.6866366]
[1753821102562,0.5209521,117590.0,117580.0,0.4056366]
[1753821102759,0.5209521,117590.0,117580.0,0.6866366]
[1753821103065,0.5209521,117590.0,117580.0,0.51651]
[1753821103656,0.1701266,117580.0,117570.0,0.348094]
[1753821103867,0.5197766,117580.0,117570.0,0.720254]
[1753821104466,0.5197766,117580.0,117570.0,0.765994]
[1753821105567,0.4700466,117580.0,117570.0,0.765994]
[1753821105755,0.26885,117580.0,117570.0,0.765994]
[1753821105960,0.3038495,117590.0,117580.0,0.3999166]
[1753821106159,0.3034218,117600.0,117590.0,0.1701121]
[1753821106363,0.3729967,117610.0,117590.0,0.6805051]
[1753821106671,0.5550597,117610.0,117600.0,0.3998877]
[1753821107067,0.6047897,117610.0,117600.0,0.3998877]
[1753821107669,0.6077897,117610.0,117600.0,0.3998877]
[1753821109570,0.6097897,117610.0,117600.0,0.3998877]
[1753821110669,0.2785676,117600.0,117580.0,0.4825461]
[1753821110971,0.5197621,117590.0,117580.0,0.669806]
[1753821111166,0.5197621,117590.0,117580.0,0.950726]
[1753821112468,0.5197621,117590.0,117580.0,0.680826]
[1753821112967,0.2552098,117580.0,117570.0,0.4424556]
[1753821113164,0.6473945,117580.0,117570.0,0.7233356]
[1753821113367,0.13954,117580.0,117570.0,0.7233356]
[1753821113560,0.3038565,117590.0,117580.0,0.3999166]
[1753821113861,0.1711121,117590.0,117580.0,0.6807966]
[1753821114266,0.1701121,117590.0,117580.0,0.6807966]
[1753821114876,0.4700321,117590.0,117580.0,0.6807966]
[1753821115070,0.5197621,117590.0,117580.0,0.6807966]
[1753821115264,0.4700466,117580.0,117570.0,0.10953]
[1753821115570,0.5197766,117580.0,117570.0,0.681811]
[1753821115877,0.5197766,117580.0,117570.0,0.682811]
[1753821116175,0.5197766,117580.0,117570.0,0.51167]
[1753821116475,0.5197766,117580.0,117570.0,0.681811]
[1753821116867,0.5197766,117580.0,117570.0,0.683811]
[1753821117174,0.5197766,117580.0,117570.0,0.51363]
[1753821117373,0.5197766,117580.0,117570.0,0.683771]
[1753821117575,0.5197766,117580.0,117570.0,0.402931]
[1753821117776,0.5197766,117580.0,117570.0,0.683771]
[1753821117976,0.5197766,117580.0,117570.0,0.28384]
[1753821118171,0.6473779,117580.0,117570.0,0.28084]
[1753821118364,0.6473779,117580.0,117570.0,0.04574]
[1753821118569,0.1701845,117540.0,117530.0,0.33475013]
[1753821118766,0.6474676,117550.0,117540.0,0.07584]
[1753821118980,0.6474676,117550.0,117540.0,0.5896545]
[1753821119172,0.5623764,117550.0,117540.0,0.5896545]
[1753821119373,0.2786516,117550.0,117540.0,0.5896545]
[1753821119866,0.6474299,117560.0,117550.0,0.13863]
[1753821120074,0.6474299,117560.0,117550.0,0.07584]
[1753821120274,0.51982,117550.0,117540.0,0.08184]
[1753821120576,0.51982,117550.0,117540.0,0.36564]
[1753821121078,0.58623705,117550.0,117540.0,0.35964]
[1753821121478,0.58623705,117550.0,117540.0,0.32958]
[1753821121670,0.58623705,117550.0,117540.0,0.28384]
[1753821121866,0.58623705,117550.0,117540.0,0.003]
[1753821122381,0.04767,117540.0,117530.0,0.372539]
[1753821122579,0.2178545,117540.0,117530.0,0.653379]
[1753821123081,0.4390345,117540.0,117530.0,0.653379]
[1753821123371,0.4701045,117540.0,117530.0,0.653379]
[1753821123879,0.4711045,117540.0,117530.0,0.657379]
[1753821125477,0.4711045,117540.0,117530.0,0.659379]
[1753821126880,0.30092,117540.0,117530.0,0.659379]
[1753821127081,0.001,117540.0,117530.0,0.659379]
[1753821127379,0.1711845,117540.0,117530.0,0.659379]
[1753821128181,0.1711845,117540.0,117530.0,0.378539]
[1753821128381,0.1711845,117540.0,117530.0,0.659339]
[1753821132082,0.001,117540.0,117530.0,0.659339]
[1753821132284,0.1701723,117550.0,117540.0,0.5000416]
[1753821132485,0.2786255,117560.0,117550.0,0.37241]
[1753821132685,0.5126108,117570.0,117560.0,0.3723955]
[1753821132979,0.4155837,117580.0,117560.0,0.483]
[1753821133187,0.4700466,117580.0,117570.0,0.3723811]
[1753821133681,0.29992,117580.0,117570.0,0.3723811]
[1753821133884,0.4389766,117580.0,117570.0,0.3723811]
[1753821134885,0.4690466,117580.0,117570.0,0.20224]
[1753821135181,0.5171711,117570.0,117560.0,0.08179]
[1753821135382,0.5171711,117570.0,117560.0,0.001]
[1753821135681,0.5171711,117570.0,117560.0,0.28172]
[1753821136190,0.5171711,117570.0,117560.0,0.28068]
[1753821137086,0.583642,117570.0,117560.0,0.28168]
[1753821137982,0.584642,117570.0,117560.0,0.28168]
[1753821138284,0.584642,117570.0,117560.0,0.4518355]
[1753821139079,0.584642,117570.0,117560.0,0.001]
[1753821139280,0.584642,117570.0,117560.0,0.4518356]
[1753821140185,0.584642,117570.0,117560.0,0.5017156]
[1753821141388,0.584642,117570.0,117560.0,0.5326256]
[1753821144084,0.584642,117570.0,117560.0,0.5943756]
[1753821144892,0.584642,117570.0,117560.0,0.42422]
[1753821145189,0.584642,117570.0,117560.0,0.5943755]
[1753821145583,0.584642,117570.0,117560.0,0.001]
[1753821152695,0.5171999,117550.0,117540.0,0.04799696]
[1753821152889,0.5171999,117550.0,117540.0,0.08079]
[1753821153693,0.5171999,117550.0,117540.0,0.08049322]
[1753821154095,0.5171999,117550.0,117540.0,0.08449322]
[1753821154295,0.5171999,117550.0,117540.0,0.25467772]
[1753821154696,0.5171999,117550.0,117540.0,0.25567772]
[1753821157003,0.5171999,117550.0,117540.0,0.31842772]
[1753821161809,0.52509825,117550.0,117540.0,0.25567772]
[1753821162013,0.52509825,117550.0,117540.0,0.31842772]
[1753821164313,0.52509825,117550.0,117540.0,0.38001772]
[1753821166012,0.52509825,117550.0,117540.0,0.20983322]
[1753821166318,0.52509825,117550.0,117540.0,0.005]
[1753821166505,0.20604,117540.0,117510.0,0.50487091]
[1753821166704,0.34271286,117550.0,117510.0,0.15204]
[1753821166705,0.4341137,117520.0,117510.0,0.15204]
[1753821166920,0.5154737,117520.0,117510.0,0.6025882]
[1753821167726,0.5154737,117520.0,117510.0,0.3332682]
[1753821167921,0.5154737,117520.0,117510.0,0.6135882]
[1753821168524,0.5154737,117520.0,117510.0,0.3332682]
[1753821168724,0.5154737,117520.0,117510.0,0.6607182]
[1753821169420,0.5154737,117520.0,117510.0,0.6537182]
[1753821169623,0.5164737,117520.0,117510.0,0.6597182]
[1753821172024,0.5164737,117520.0,117510.0,0.3794382]
[1753821172225,0.5164737,117520.0,117510.0,0.6597182]
[1753821172531,0.5164737,117520.0,117510.0,0.5514882]
[1753821173032,0.5164737,117520.0,117510.0,0.5986582]
[1753821173432,0.5164737,117520.0,117510.0,0.3183782]
[1753821173629,0.5164737,117520.0,117510.0,0.5986582]
[1753821175130,0.5164737,117520.0,117510.0,0.6597182]
[1753821175332,0.5164737,117520.0,117510.0,0.3794382]
[1753821175531,0.5164737,117520.0,117510.0,0.6597182]
[1753821176134,0.5164737,117520.0,117510.0,0.20921]
[1753821176328,0.5164737,117520.0,117510.0,0.6597179]
[1753821177638,0.5164737,117520.0,117510.0,0.3794379]
[1753821177936,0.4658515,117480.0,117470.0,0.35351235]
[1753821178142,0.5155315,117480.0,117470.0,0.39299235]
[1753821178434,0.515546,117470.0,117460.0,0.37368266]
[1753821178640,0.58350901,117470.0,117460.0,0.59685]